bitfinex/quotes_ETHUSD_20251024
["timestamp","ask_amount","ask_price","bid_price","bid_amount"]
[1761281477170,2.51686951,3973.2,3972.1,3.31]
[1761281477375,3.04186573,3973.2,3972.2,1.5552]
[1761281477575,3.04186573,3973.2,3972.3,0.50688]
[1761281478010,0.52499622,3973.2,3972.3,0.50688]
[1761281478499,0.2154,3973.3,3972.3,0.50688]
[1761281478889,2.7322198,3973.3,3972.3,0.50688]
[1761281479291,0.4358,3973.2,3972.3,0.50688]
[1761281479600,0.4358,3973.2,3970.3,3.02941205]
[1761281479801,0.02257409,3973.1,3970.3,0.02518701]
[1761281479999,0.02257409,3973.1,3969.8,3.02941205]
[1761281480000,2.51749591,3972.3,3970.4,1.888]
[1761281480202,0.02257409,3972.9,3969.9,0.97992905]
[1761281480402,0.45837409,3972.9,3969.9,0.97992905]
[1761281480605,0.45837409,3972.9,3970.0,2.68318891]
[1761281480806,2.51718017,3972.7,3970.1,1.5552]
[1761281480970,0.4358,3972.9,3970.2,0.53206764]
[1761281481699,0.4358,3972.9,3970.4,0.50688]
[1761281481890,0.4358,3972.9,3970.5,0.02518574]
[1761281482226,0.2154,3973.3,3970.5,0.02518574]
[1761281482227,0.6512,3973.3,3970.5,0.02518574]
[1761281482924,0.001,3973.4,3970.7,0.50688]
[1761281483088,0.001,3973.4,3970.9,2.06208]
[1761281483288,0.001,3973.4,3971.0,0.02518257]
[1761281483489,0.001,3973.4,3971.1,0.29786559]
[1761281483689,0.001,3973.4,3971.7,2.06208]
[1761281483906,0.001,3973.4,3971.9,2.06208]
[1761281484108,0.001,3973.4,3972.0,0.02517623]
[1761281484318,0.001,3973.4,3972.0,0.53205623]
[1761281484515,0.001,3973.4,3972.1,1.515]
[1761281484718,0.001,3973.4,3972.3,2.06208]
[1761281484919,0.001,3973.4,3972.4,0.02517369]
[1761281485263,0.001,3973.4,3972.4,0.53205369]
[1761281485617,0.001,3973.4,3972.4,0.02517369]
[1761281485814,0.001,3973.4,3973.3,0.63248]
[1761281485993,0.001,3973.4,3973.3,3.94148]
[1761281486193,0.001,3973.4,3973.3,2.18768]
[1761281486594,0.001,3973.4,3973.3,6.89568]
[1761281486997,0.001,3973.4,3973.3,6.8778]
[1761281487193,0.001,3973.4,3973.3,7.38468]
[1761281487398,0.4368,3973.4,3973.3,5.3226]
[1761281487593,0.4368,3973.4,3973.3,2.0136]
[1761281487895,0.4368,3973.4,3973.3,2.0386]
[1761281488097,2.95353629,3973.4,3973.3,0.1256]
[1761281488295,3.50054571,3973.4,3973.3,0.1256]
[1761281488497,3.50054571,3973.4,3973.3,0.2446]
[1761281489518,3.50054571,3973.4,3973.3,2.1516]
[1761281489918,3.50054571,3973.4,3973.3,0.1256]
[1761281490227,3.50054571,3973.4,3973.3,3.4346]
[1761281490440,3.50054571,3973.4,3973.3,0.1256]
[1761281490636,3.50054571,3973.4,3973.3,3.4346]
[1761281491353,2.95353629,3973.4,3973.3,3.4346]
[1761281492521,2.51711373,3972.9,3972.6,1.888]
[1761281492847,0.4419,3972.8,3972.7,3.308]
[1761281493212,0.4419,3972.8,3972.7,3.33317179]
[1761281493437,0.4419,3972.8,3972.7,3.308]
[1761281496353,0.001,3973.4,3972.7,3.33317179]
[1761281496648,0.001,3973.4,3972.8,2.06208]
[1761281497435,0.4429,3973.4,3972.4,2.06208]
[1761281497624,0.4429,3973.4,3972.3,3.02941205]
[1761281497625,0.4429,3973.4,3972.6,2.06208]
[1761281498342,0.001,3973.4,3972.7,0.02517179]
[1761281498548,0.001,3973.4,3972.7,0.53205179]
[1761281498909,0.001,3973.4,3972.7,0.02517179]
[1761281499112,0.001,3973.4,3972.9,0.50688]
[1761281499430,0.001,3973.4,3973.0,0.02516989]
[1761281500810,0.001,3973.4,3972.9,5.09149205]
[1761281501014,0.001,3973.4,3972.9,4.58461205]
[1761281501207,0.001,3973.4,3973.0,7.25708]
[1761281501649,0.001,3973.4,3973.3,0.50688]
[1761281502614,0.001,3973.4,3973.3,0.63248]
[1761281503129,0.001,3973.4,3973.3,7.38268]
[1761281504148,0.001,3973.4,3973.3,7.38168]
[1761281504528,0.001,3973.4,3973.3,2.18768]
[1761281505128,0.001,3973.4,3973.3,1.5552]
[1761281505330,0.4429,3973.4,3973.3,5.194]
[1761281505831,0.4429,3973.4,3971.9,4.40312933]
[1761281505832,0.4429,3973.4,3972.3,3.02941205]
[1761281506231,0.02257409,3973.3,3971.4,3.02941205]
[1761281506426,2.51738444,3972.4,3971.5,4.266]
[1761281506641,2.95876298,3973.2,3970.6,4.40312933]
[1761281506642,2.53982739,3972.6,3971.6,5.194]
[1761281506843,2.53982739,3972.6,3971.7,3.307]
[1761281507174,0.2308,3971.7,3970.9,3.02941205]
[1761281507374,0.2308,3971.7,3971.0,6.7492]
[1761281508377,0.2308,3971.7,3970.7,3.02941205]
[1761281508378,0.2308,3971.7,3971.1,5.194]
[1761281508577,0.2308,3971.7,3970.7,3.02941205]
[1761281508578,0.6727,3971.7,3970.7,3.02941205]
[1761281508741,0.69527409,3971.7,3970.3,3.02941205]
[1761281508942,0.4419,3971.6,3970.4,5.194]
[1761281509178,0.4419,3971.6,3970.5,1.5552]
[1761281509675,0.4419,3971.6,3970.6,0.02518511]
[1761281510043,2.95978326,3971.6,3970.2,0.50688]
[1761281510239,0.25337409,3971.7,3970.4,1.5552]
[1761281510578,0.4419,3971.6,3970.5,0.50688]
[1761281511082,0.02257409,3971.5,3970.1,0.002]
[1761281511279,2.51841414,3970.8,3970.1,0.002]
[1761281511453,2.51841414,3970.8,3970.2,5.195]
[1761281511680,0.4419,3970.7,3970.2,5.195]
[1761281511901,0.4419,3970.7,3970.1,0.002]
[1761281512076,2.51852365,3970.6,3970.2,5.195]
[1761281512277,0.4419,3970.7,3970.2,5.195]
[1761281512484,2.96044312,3970.6,3970.2,5.195]
[1761281512687,0.4419,3970.6,3970.2,5.195]
[1761281512885,0.4419,3970.5,3970.2,5.195]
[1761281513593,0.2308,3971.7,3970.2,5.195]
[1761281513594,0.4419,3971.1,3970.2,5.195]
[1761281513774,0.4419,3971.6,3970.3,1.5552]
[1761281513984,0.02257409,3971.5,3970.3,1.5552]
[1761281514168,0.4419,3971.6,3970.3,1.5552]
[1761281514509,2.54052788,3971.5,3970.3,1.5552]
[1761281514678,0.02257409,3971.5,3970.1,0.002]
[1761281514861,2.51813053,3971.2,3970.2,2.753]
[1761281515067,2.54056888,3971.5,3970.2,2.753]
[1761281515068,0.4419,3971.1,3970.2,2.753]
[1761281515562,0.4419,3971.1,3971.0,0.1256]
[1761281515768,0.4419,3971.1,3971.0,3.4326]
[1761281516804,0.4419,3971.1,3971.0,0.1256]
[1761281516999,0.73789807,3971.1,3971.0,0.3706]
[1761281517579,0.4419,3971.1,3971.0,0.3706]
[1761281520202,0.4738,3971.1,3971.0,0.3706]
[1761281520568,0.7046,3971.7,3971.0,0.3706]
[1761281521101,0.2308,3971.7,3971.6,0.1256]
[1761281521470,2.74861353,3971.7,3971.6,0.1256]
[1761281521699,3.49727488,3971.7,3971.6,0.1256]
[1761281521886,3.49727488,3971.7,3971.6,0.3676]
[1761281522088,3.49727488,3971.7,3971.6,1.6626]
[1761281522588,3.51984897,3971.7,3971.6,0.1256]
[1761281522835,3.51984897,3971.7,3971.6,0.2456]
[1761281523287,3.51984897,3971.7,3971.6,0.1256]
[1761281523486,3.51984897,3971.7,3971.6,0.2456]
[1761281524100,3.51984897,3971.7,3971.6,1.5306]
[1761281524790,3.49727488,3971.7,3971.6,1.5306]
[1761281526901,3.49727488,3971.7,3971.6,0.1256]
[1761281527104,3.49727488,3971.7,3971.6,0.12560001]
[1761281528722,5.05247488,3971.7,3971.6,1e-08]
[1761281528924,5.05247488,3971.7,3970.1,0.002]
[1761281528925,2.51800372,3971.4,3971.3,1e-08]
[1761281529222,2.51851105,3970.6,3970.5,0.124]
[1761281529578,2.51851105,3970.6,3970.5,0.2496]
[1761281529579,2.99231105,3970.6,3970.5,0.2496]
[1761281530382,2.99231105,3970.6,3970.5,0.1256]
[1761281530614,2.99231105,3970.6,3970.5,0.3736]
[1761281531613,2.51876479,3970.2,3970.1,0.002]
[1761281531814,2.99256479,3970.2,3970.1,1.744]
[1761281533281,2.99256479,3970.2,3970.1,0.002]
[1761281533509,2.99256479,3970.2,3970.1,1.361]
[1761281533912,2.99256479,3970.2,3970.1,0.002]
[1761281534130,3.5459461,3970.2,3970.1,0.002]
[1761281534298,2.51876479,3970.2,3970.1,0.002]
[1761281534494,2.99256479,3970.2,3970.1,0.002]
[1761281535527,2.99256479,3970.2,3970.1,0.175]
[1761281535688,0.02257409,3970.3,3969.5,0.002]
[1761281535689,2.51905431,3969.8,3969.5,0.002]
[1761281535885,2.51920896,3969.5,3969.2,1.464]
[1761281536119,3.01558305,3969.5,3969.2,1.464]
[1761281536487,3.01558305,3969.5,3967.2,3.40221205]
[1761281536687,3.01558305,3969.5,3969.1,0.005]
[1761281539291,3.01558305,3969.5,3969.3,1.295]
[1761281539716,0.4738,3969.5,3969.3,1.295]
[1761281539919,2.99300896,3969.5,3969.3,1.295]
[1761281540413,0.4738,3969.5,3969.3,1.295]
[1761281540622,0.2221,3969.6,3969.3,1.295]
[1761281540825,0.2221,3969.6,3969.5,3.308]
[1761281540994,0.6959,3969.9,3969.5,3.308]
[1761281541192,0.4738,3969.8,3969.5,3.308]
[1761281541628,0.4738,3969.8,3969.7,0.1256]
[1761281541827,0.2221,3969.9,3969.7,0.1256]
[1761281542207,3.21486171,3969.9,3969.7,0.1256]
[1761281542713,0.4738,3969.8,3969.7,0.1256]
[1761281543216,0.2221,3969.9,3969.7,0.1256]
[1761281543412,2.74105738,3969.9,3969.7,0.1256]
[1761281543607,0.6959,3969.9,3969.7,0.1256]
[1761281543939,2.54144816,3970.1,3969.7,0.1256]
[1761281544141,2.54144816,3970.1,3969.5,3.308]
[1761281544142,2.51895513,3969.9,3969.5,3.308]
[1761281544343,0.2221,3969.8,3969.5,3.308]
[1761281544741,2.51884752,3970.1,3969.7,0.1256]
[1761281545144,8.87219318,3971.5,3969.5,3.308]
[1761281545145,0.4738,3970.0,3969.5,3.308]
[1761281545373,0.2221,3969.9,3969.5,3.308]
[1761281545716,0.2221,3969.9,3969.8,0.1256]
[1761281545949,0.02257409,3970.6,3969.8,0.1256]
[1761281546151,2.51845602,3970.7,3969.5,3.308]
[1761281546152,2.51844762,3970.7,3969.5,3.308]
[1761281546340,0.50566135,3971.7,3969.7,0.50688]
[1761281546341,2.99183205,3971.4,3969.7,0.50688]
[1761281546642,0.02257409,3971.3,3969.7,0.50688]
[1761281546846,0.02257409,3971.3,3969.9,0.50688]
[1761281547157,0.4738,3971.4,3969.9,0.50688]
[1761281547320,2.99180546,3971.4,3970.1,0.50688]
[1761281547521,0.02257409,3971.6,3970.1,0.50688]
[1761281547719,0.02257409,3971.6,3970.3,0.50688]
[1761281547933,0.2221,3972.0,3970.4,0.02518637]
[1761281548134,2.51755518,3972.2,3970.7,0.50688]
[1761281548333,2.51755518,3972.2,3970.6,1.5552]
[1761281548334,0.2207,3972.4,3970.8,0.02518384]
[1761281548630,2.73807337,3972.4,3971.0,0.50688]
[1761281548830,0.2207,3972.4,3971.2,0.50688]
[1761281549034,2.73807412,3972.4,3971.2,0.88568]
[1761281549238,2.51750026,3972.2,3971.2,0.88568]
[1761281549436,0.02257409,3972.1,3971.3,3.698]
[1761281549651,0.02257409,3972.1,3971.4,1.809]
[1761281549652,2.51770281,3971.9,3971.4,1.809]
[1761281550057,0.6807,3971.9,3971.4,1.809]
[1761281550223,0.6807,3971.9,3970.7,0.50688]
[1761281550422,0.6807,3971.9,3971.5,3.307]
[1761281551261,3.19844819,3971.9,3971.5,3.307]
[1761281551655,0.447,3971.8,3970.7,0.50688]
[1761281551835,0.447,3971.8,3971.2,1.889]
[1761281552239,2.75144819,3971.9,3970.7,0.88568]
[1761281552433,0.6687,3972.4,3970.9,0.50688]
[1761281552832,0.447,3972.3,3970.9,0.50688]
[1761281553060,2.51769674,3971.9,3970.9,0.50688]
[1761281553265,0.447,3972.3,3969.6,3.02941205]
[1761281553572,0.2217,3972.4,3970.5,0.50688]
[1761281553759,0.2217,3972.4,3970.6,0.40398511]
[1761281553956,0.2217,3972.4,3970.8,0.50688]
[1761281554274,0.2217,3972.4,3970.9,0.0251832]
[1761281554455,2.73909113,3972.4,3971.0,0.50688]
[1761281554656,2.73909113,3972.4,3971.1,0.02518193]
[1761281554879,0.2217,3972.4,3971.2,3.307]
[1761281555059,0.001,3972.4,3972.3,0.1934]
[1761281555260,0.001,3972.4,3972.3,3.8782]
[1761281555574,0.001,3972.4,3972.3,3.49679757]
[1761281555746,0.001,3972.4,3972.3,3.49539797]
[1761281556069,0.001,3972.4,3972.3,5.38138534]
[1761281556233,0.001,3972.4,3972.3,5.37806391]
[1761281556434,0.001,3972.4,3972.3,5.50366391]
[1761281556673,0.001,3972.4,3972.3,2.19766391]
[1761281556976,0.001,3972.4,3972.3,5.3206]
[1761281557394,0.001,3972.4,3972.3,3.4316]
[1761281558441,0.001,3972.4,3972.3,0.1256]
[1761281558671,0.001,3972.4,3972.3,0.9596]
[1761281558851,0.001,3972.4,3972.3,0.98477433]
[1761281559276,0.001,3972.4,3972.3,0.9596]
[1761281559587,0.001,3972.4,3972.3,3.4306]
[1761281560880,0.001,3972.4,3972.3,3.305]
[1761281561077,0.001,3972.4,3971.7,0.1831]
[1761281561078,0.001,3972.4,3971.7,0.5516]
[1761281561254,0.001,3972.4,3971.7,0.1831]
[1761281561455,0.001,3972.4,3971.7,1.888]
[1761281561456,0.2337,3971.8,3971.7,1.888]
[1761281561661,0.2337,3971.8,3971.7,5.193]
[1761281562556,0.2337,3971.8,3970.2,0.1854]
[1761281562557,1.00053235,3971.8,3970.4,0.3685]
[1761281562760,0.6807,3971.8,3971.2,1.888]
[1761281562969,0.6807,3971.8,3971.3,0.536]
[1761281563172,0.447,3971.7,3971.3,0.536]
[1761281563380,2.96486997,3971.7,3970.2,0.5539]
[1761281563571,0.447,3971.7,3971.1,1.888]
[1761281563776,0.447,3971.7,3971.2,0.544]
[1761281564688,0.447,3971.7,3971.3,3.305]
[1761281565864,2.51788552,3971.6,3971.3,3.305]
[1761281566180,2.51788552,3971.6,3971.4,3.305]
[1761281566379,2.96481888,3971.7,3971.4,3.305]
[1761281566706,1.01862207,3971.7,3970.5,0.3685]
[1761281566889,2.96494026,3971.6,3971.1,1.888]
[1761281567200,0.447,3971.6,3971.1,1.888]
[1761281567601,2.75145076,3971.8,3971.1,1.888]
[1761281567802,2.75145076,3971.8,3971.2,0.0251813]
[1761281568099,2.75145076,3971.8,3971.3,3.305]
[1761281568482,3.56647799,3971.8,3971.3,3.305]
[1761281569097,3.56647799,3971.8,3971.3,3.307]
[1761281569303,0.447,3971.7,3971.3,3.307]
[1761281570206,3.11947799,3971.8,3971.3,3.307]
[1761281570207,0.2337,3971.8,3971.3,3.307]
[1761281570414,0.2337,3971.8,3971.4,0.02518003]
[1761281570700,2.51763452,3972.0,3971.4,0.02518003]
[1761281570865,2.51763452,3972.0,3971.7,0.1256]
[1761281571064,3.06591054,3971.9,3971.3,3.307]
[1761281571269,0.54821399,3971.9,3971.4,0.02518003]
[1761281571470,3.06590073,3971.9,3971.8,0.1256]
[1761281571893,3.74660073,3971.9,3971.8,0.1256]
[1761281572292,3.74660073,3971.9,3971.8,3.4296]
[1761281575021,0.6807,3971.9,3971.8,3.4296]
[1761281575835,3.19838674,3971.9,3971.8,3.4296]
[1761281576019,2.75138674,3971.9,3971.8,3.4296]
[1761281576424,2.51768674,3971.9,3971.8,3.4296]
[1761281576796,0.2337,3971.9,3971.8,0.1256]
[1761281576997,2.51764714,3972.0,3971.8,2.4226]
[1761281577203,2.51764714,3972.0,3971.8,2.297]
[1761281577402,2.51764714,3972.0,3971.9,0.1256]
[1761281577934,2.51754552,3972.2,3971.9,0.1256]
[1761281578344,2.51756966,3972.1,3971.8,2.297]
[1761281578546,2.5174966,3972.2,3972.1,0.1256]
[1761281578700,2.51752614,3972.2,3972.0,0.1256]
[1761281578905,2.51755998,3972.1,3972.0,0.1256]
[1761281579104,2.51755998,3972.1,3971.8,2.297]
[1761281579329,2.51755998,3972.1,3972.0,0.1256]
[1761281580356,3.06856713,3972.1,3972.0,0.1256]
[1761281580558,0.001,3972.4,3972.0,0.1256]
[1761281580740,0.001,3972.4,3972.3,0.3087]
[1761281581167,0.001,3972.4,3972.3,0.6772]
[1761281581532,0.001,3972.4,3972.3,0.1256]
[1761281581735,0.001,3972.4,3972.3,5.3166]
[1761281582543,0.001,3972.4,3972.3,0.1256]
[1761281582863,0.001,3972.4,3972.3,4.9126]
[1761281583162,0.001,3972.4,3972.3,5.3166]
[1761281584167,0.4525,3972.4,3972.3,5.3166]
[1761281584463,0.001,3972.4,3972.3,5.3166]
[1761281584839,0.001,3972.4,3972.3,0.1256]
[1761281585045,0.001,3972.4,3972.3,3.4286]
[1761281585246,0.001,3972.4,3972.3,0.1256]
[1761281585769,0.001,3972.4,3972.3,1.7616]
[1761281585962,3.26685137,3972.4,3972.3,0.1256]
[1761281586144,3.26685137,3972.4,3972.3,3.1676]
[1761281586546,3.26685137,3972.4,3972.3,0.1256]
[1761281586750,3.28942546,3972.4,3972.3,0.9606]
[1761281587334,3.28942546,3972.4,3972.3,0.1256]
[1761281587567,0.001,3972.4,3972.3,3.0915]
[1761281587771,0.001,3972.4,3972.3,3.59838]
[1761281588073,0.001,3972.4,3972.1,0.50688]
[1761281588258,0.001,3972.4,3972.2,5.19]
[1761281588459,0.001,3972.4,3972.3,5.5585]
[1761281589164,0.001,3972.4,3972.3,0.3685]
[1761281589358,0.001,3972.4,3971.9,0.50688]
[1761281589359,0.001,3972.4,3971.9,0.3685]
[1761281589539,0.001,3972.4,3972.0,5.2535]
[1761281589741,0.001,3972.4,3972.1,5.19]
[1761281590056,0.001,3972.4,3971.8,0.002]
[1761281590267,2.51840028,3972.4,3971.9,4.764]
[1761281590435,0.001,3972.4,3971.9,4.764]
[1761281590839,0.001,3972.4,3971.9,5.1325]
[1761281591073,0.001,3972.4,3971.9,4.764]
[1761281591282,0.001,3972.4,3972.0,0.3685]
[1761281591645,0.001,3972.4,3971.9,4.764]
[1761281592971,0.001,3972.4,3972.0,0.3685]
[1761281596550,0.001,3972.4,3971.9,4.764]
[1761281597584,0.001,3972.4,3972.3,0.1256]
[1761281597793,0.001,3972.4,3972.3,5.3136]
[1761281598480,0.4525,3972.4,3972.3,5.3136]
[1761281599267,0.4525,3972.4,3972.3,3.4256]
[1761281599464,2.96986985,3972.4,3972.3,3.4256]
[1761281599665,0.4525,3972.4,3972.3,3.4256]
[1761281600972,0.001,3972.4,3972.3,3.4256]
[1761281602384,0.4525,3972.4,3972.3,3.4256]
[1761281602727,0.7494749,3972.4,3972.3,3.4256]
[1761281603022,0.2979749,3972.4,3972.3,3.4256]
[1761281603422,0.4525,3972.4,3972.3,3.4256]
[1761281604331,2.96986985,3972.4,3972.3,0.1256]
[1761281604535,2.96986985,3972.4,3972.3,3.4246]
[1761281605128,2.96986985,3972.4,3972.3,0.1256]
[1761281605307,2.96986985,3972.4,3972.3,0.7876]
[1761281605639,3.52084066,3972.4,3972.3,0.7876]
[1761281606647,3.52084066,3972.4,3972.3,3.4266]
[1761281607638,3.52084066,3972.4,3972.3,0.1276]
[1761281607931,3.52084066,3972.4,3972.3,3.4266]
[1761281608293,3.52084066,3972.4,3972.3,0.1276]
[1761281608494,3.52084066,3972.4,3972.3,1e-08]
[1761281608699,3.52084066,3972.4,3972.3,0.00800001]
[1761281608932,3.52084066,3972.4,3972.3,1.17100001]
[1761281615203,3.06934066,3972.4,3972.3,1.17100001]
[1761281615413,2.51836985,3972.4,3972.3,1.17100001]
[1761281616018,0.001,3972.4,3972.3,1.17100001]
[1761281618756,0.001,3972.4,3972.3,1.29660001]
[1761281621951,0.4352,3972.4,3972.3,1.29660001]
[1761281622120,0.001,3972.4,3972.3,0.12560001]
[1761281622320,3.20440453,3972.4,3972.3,1.68460001]
[1761281622547,2.95256985,3972.4,3972.3,1.68460001]
[1761281623159,2.95256985,3972.4,3972.3,3.42260001]
[1761281623664,2.95256985,3972.4,3972.3,3.42160001]
[1761281623868,2.95256985,3972.4,3972.3,0.12560001]
[1761281624021,3.50181128,3972.4,3972.3,3.42160001]
[1761281624223,3.50181128,3972.4,3972.3,0.12560001]
[1761281624435,3.50181128,3972.4,3972.3,3.42160001]
[1761281625050,3.06761128,3972.4,3972.3,3.42160001]
[1761281625250,2.51836985,3972.4,3972.3,3.42160001]
[1761281626268,2.95256985,3972.4,3972.3,3.42160001]
[1761281626771,2.95256985,3972.4,3972.3,0.12560001]
[1761281626929,2.95256985,3972.4,3972.3,3.42160001]
[1761281627123,2.95256985,3972.4,3972.3,0.12560001]
[1761281627320,2.95256985,3972.4,3972.3,0.84360001]
[1761281627724,3.50181005,3972.4,3972.3,0.84360001]
[1761281629066,3.50181005,3972.4,3972.3,3.42060001]
[1761281630056,3.06761005,3972.4,3972.3,3.42060001]
[1761281630443,2.51836985,3972.4,3972.3,3.42060001]
[1761281630842,0.001,3972.4,3972.3,3.42060001]
[1761281631230,0.001,3972.4,3972.3,3.78910001]
[1761281633070,0.001,3972.4,3972.3,4.17038001]
[1761281633368,0.001,3972.4,3972.3,5.72558001]
[1761281633752,0.001,3972.4,3972.3,2.43058001]
[1761281633957,0.001,3972.4,3972.3,7.10570001]
[1761281634941,0.001,3972.4,3972.3,7.61258001]
[1761281635675,0.001,3972.4,3972.3,7.56258001]
[1761281638076,0.001,3972.4,3972.3,2.38058001]
[1761281638239,0.001,3972.4,3972.3,7.58775434]
[1761281638444,0.001,3972.4,3972.3,7.56258001]
[1761281640987,0.001,3972.8,3972.5,2.06208]
[1761281641174,0.001,3972.8,3972.7,0.50688]
[1761281641378,0.001,3972.8,3972.7,3.79988]
[1761281641558,0.001,3972.8,3972.7,4.11838]
[1761281642060,0.001,3972.8,3972.7,6.00538]
[1761281642990,0.4995,3975.0,3972.9,0.50688]
[1761281643154,0.4995,3975.0,3974.9,0.1256]
[1761281643497,0.4995,3975.0,3974.9,5.3056]
[1761281645101,0.4995,3975.0,3974.9,5.2556]
[1761281645268,0.4995,3975.0,3974.9,0.0756]
[1761281645269,3.79228369,3975.0,3974.9,0.0756]
[1761281645454,3.46739736,3975.0,3974.9,2.5226]
[1761281645987,3.44482327,3975.0,3974.9,2.5226]
[1761281647712,3.44482327,3975.0,3974.9,0.0756]
[1761281647870,3.44482327,3975.0,3974.9,3.3666]
[1761281648203,4.06423685,3975.0,3974.9,3.3666]
[1761281648418,4.06423685,3975.0,3974.9,0.0756]
[1761281648615,1.54851358,3975.0,3974.9,1.864]
[1761281648905,3.01522327,3975.0,3974.9,1.864]
[1761281649198,0.9291,3975.0,3974.9,3.29]
[1761281649566,3.01522327,3975.0,3974.9,3.29]
[1761281650200,2.51579686,3974.9,3974.2,0.1354]
[1761281650405,2.51579686,3974.9,3974.3,2.886]
[1761281650701,0.4995,3975.0,3974.3,2.886]
[1761281650702,3.01522591,3975.0,3974.3,2.886]
[1761281650868,3.01522591,3975.0,3974.3,2.836]
[1761281651388,2.51580618,3974.9,3974.2,0.1354]
[1761281651707,2.51580618,3974.9,3974.4,5.177]
[1761281652600,2.94540618,3974.9,3974.4,5.177]
[1761281652803,0.4995,3975.0,3974.4,5.177]
[1761281653174,2.51582187,3974.9,3974.4,5.177]
[1761281653874,3.01522478,3975.0,3974.4,5.177]
[1761281654073,2.51579193,3974.9,3974.4,5.177]
[1761281654401,2.51594875,3974.7,3974.5,5.176]
[1761281655199,2.51585372,3974.8,3974.5,5.176]
[1761281655398,3.01523237,3975.0,3974.5,5.176]
[1761281655399,0.4995,3975.0,3974.5,5.176]
[1761281655576,2.51588469,3974.8,3974.2,0.1354]
[1761281655776,3.1595991,3974.9,3974.2,0.1354]
[1761281655978,1.04707868,3974.8,3974.3,4.646]
[1761281656177,0.4296,3974.8,3974.4,2.759]
[1761281656471,2.94546572,3974.8,3974.4,2.709]
[1761281657499,2.94546572,3974.8,3973.9,0.3185]
[1761281657677,2.72999365,3974.9,3974.5,1.887]
[1761281657878,2.51587237,3974.8,3974.6,3.288]
[1761281658154,2.51591315,3974.7,3974.6,3.288]
[1761281658282,2.94545206,3974.8,3974.6,3.288]
[1761281658479,2.94545206,3974.8,3974.6,3.4136]
[1761281658675,2.94545206,3974.8,3974.6,0.1256]
[1761281658987,2.94544985,3974.8,3974.7,3.288]
[1761281659814,2.73000923,3974.9,3974.7,3.288]
[1761281660107,2.51584985,3974.8,3974.7,3.288]
[1761281660474,2.51584985,3974.8,3974.7,3.4136]
[1761281660881,2.51584985,3974.8,3974.7,3.3636]
[1761281661078,2.73000178,3974.9,3974.7,3.4126]
[1761281661277,2.51584985,3974.8,3974.7,3.4126]
[1761281661683,3.15961115,3974.9,3974.7,3.4126]
[1761281661906,3.01525574,3975.0,3974.7,3.4126]
[1761281662107,0.4995,3975.0,3974.7,3.287]
[1761281662311,0.5005,3975.0,3974.9,0.1256]
[1761281663133,0.5005,3975.0,3974.9,0.15075786]
[1761281663338,0.5005,3975.0,3974.9,0.4441]
[1761281664034,0.5005,3975.0,3974.9,0.1256]
[1761281664803,0.5005,3975.0,3974.9,0.15075786]
[1761281665130,0.5005,3975.0,3974.9,0.1256]
[1761281675152,0.5005,3975.0,3974.9,0.0756]
[1761281677992,0.5005,3975.0,3974.9,0.3941]
[1761281678486,0.5005,3975.0,3974.9,4.25595477]
[1761281678941,0.5005,3975.0,3974.9,3.93745477]
[1761281679692,0.5005,3975.0,3974.9,0.0756]
[1761281679981,0.5005,3975.0,3974.9,0.1256]
[1761281680340,0.5005,3975.0,3974.6,2.2075]
[1761281680341,0.5005,3975.0,3974.6,0.002]
[1761281680696,0.5005,3975.0,3974.8,2.06208]
[1761281681252,0.001,3975.4,3974.8,2.38058]
[1761281681574,0.001,3975.4,3975.0,2.06208]
[1761281681753,0.001,3975.4,3975.1,0.02515659]
[1761281681947,0.001,3975.4,3975.2,3.282]
[1761281682578,0.001,3975.4,3975.2,3.232]
[1761281682750,0.001,3975.4,3974.3,3.34519754]
[1761281682951,0.001,3975.4,3975.3,1.886]
[1761281683156,0.001,3975.4,3975.3,5.168]
[1761281683378,0.001,3975.4,3974.7,0.50688]
[1761281683578,0.001,3975.4,3974.9,0.50688]
[1761281684365,0.001,3975.4,3975.0,5.4865]
[1761281684844,0.001,3975.4,3975.1,0.3185]
[1761281685046,0.001,3975.4,3975.1,1.8737]
[1761281685385,0.001,3975.4,3975.2,0.50688]
[1761281685570,0.001,3975.4,3975.3,3.78888]
[1761281685875,0.001,3975.4,3975.3,4.10738]
[1761281686289,0.001,3975.4,3975.3,5.66258]
[1761281686643,0.001,3975.4,3975.3,2.38058]
[1761281686976,0.001,3975.4,3975.3,7.54758]
[1761281687280,1.18755094,3975.8,3975.4,2.31408]
[1761281687464,1.18755094,3975.8,3975.4,2.1257]
[1761281687664,1.18755094,3975.8,3975.5,1.15357014]
[1761281687884,1.18755094,3975.8,3975.6,0.3185]
[1761281688056,1.18755094,3975.8,3975.7,0.50688]
[1761281688267,1.18755094,3975.8,3975.7,2.06208]
[1761281688464,1.18755094,3975.8,3975.7,2.38058]
[1761281688688,0.009,3976.3,3975.7,2.38058]
[1761281688853,0.009,3976.3,3976.2,0.68998]
[1761281689050,0.009,3976.3,3976.2,5.52618]
[1761281689269,0.009,3976.3,3976.2,2.56368]
[1761281689468,0.009,3976.3,3976.2,7.73068]
[1761281690179,0.009,3976.3,3976.2,2.56368]
[1761281690356,0.009,3976.3,3976.2,7.85528]
[1761281691447,0.009,3976.3,3976.2,7.53678]
[1761281691862,0.009,3976.3,3976.2,7.85528]
[1761281693775,0.009,3976.3,3976.2,7.53678]
[1761281694072,0.009,3976.3,3976.2,2.68768]
[1761281694272,0.4435,3976.3,3976.2,3.779]